[Event "Summer Prague Open-A 2024"]
[Site "Prague"]
[Date "2024.08.05"]
[Round "5.23"]
[White "Pietrzak, Tomasz"]
[Black "Stocek, Martin"]
[Result "1/2-1/2"]
[Annotator "TA"]
[ECO "A80"]
[WhiteElo "2013"]
[BlackElo "2176"]
[PlyCount "148"]
[EventDate "2024.08.02"]
[EventType "swiss"]
[EventCountry "CZE"]
[SourceTitle "playchess.com"]
[Source "ChessBase"]
[SourceQuality "1"]
[TimeControl "40/5400+30:1800+30"]

{[%evp 9,147,63,107,112,111,118,134,127,121,92,104,97,97,96,96,94,103,93,97,73,78,87,103,79,171,168,170,89,194,125,122,98,97,-5,67,70,68,63,72,67,58,43,46,0,0,0,0,0,37,21,37,44,75,0,69,-8,-2,-8,-8,-2,0,0,0,0,0,-63,-53,-46,-8,-66,-57,-115,-94,-135,-133,-140,-62,-63,-66,-73,-73,-74,-74,-74,-73,-80,-74,-74,-74,-72,-29,-29,-27,-27,-27,-101,0,-4766,-444,-444,-429,-422,-316,-316,-316,-310,-310,-310,-310,-310,-310,-310,-310,-310,-310,-293,-293,-293,-293,-293,-293,-293,-293,-293,-293,-293,-293,-293,-293,-293,-293,-293,-281,-291,-291,-291,-291,-291,0,-291]} 1. d4 {[%emt 0:10:10]} f5 {[%emt 0:00:08]} 2. Bg5 {[%emt 0:00:08]} g6 {[%emt 0:00:20]} 3. Nc3 {[%emt 0:00:06]} Bg7 {[%emt 0:00:35]} 4. e3 {[%emt 0:00:10]} Nf6 {[%emt 0:00:50]} 5. h4 {[%emt 0:00:07]} h6 {[%emt 0:00:22]} 6. Bxf6 {[%emt 0:00:05]} Bxf6 {[%emt 0:01:20]} 7. Qf3 {[%emt 0:00:07]} e6 {[%emt 0:18:01][%cal Ob8c6]} 8. Nge2 {[%emt 0:01:18] White is clearly better.} Nc6 {[%emt 0:10:12]} 9. Nf4 {[%emt 0:01:11]} Ne7 {[%emt 0:01:05]} 10. g4 {[%emt 0:08:14] aiming for gxf5.} c6 {[%emt 0:14:05]} 11. gxf5 {[%emt 0:35:14]} exf5 {[%emt 0:00:21]} 12. O-O-O {[%emt 0:03:10] Threatens to win with e4.} d5 {[%emt 0:02:27]} 13. Bd3 $36 {[%emt 0:04:19][%mdl 2048] White has strong initiative.} Qd6 {[%emt 0:10:44]} 14. Rdg1 {[%emt 0:02:10]} Rg8 {[%emt 0:00:12]} 15. Qg3 {[%emt 0:12:35][%cal Of4d5]} Bh8 {[%emt 0:03:42]} 16. Rg2 {[%emt 0:09:40]} g5 {[%emt 0:09:09]} (16... Be6 $16) 17. hxg5 $18 {[%emt 0:01:39]} hxg5 {[%emt 0:02:12] [#]} 18. Qh2 {[%emt 0:01:29] Wards off Kf8} (18. Rh7 $1 $18 Kd8 19. Nce2) 18... Qf6 {[%emt 0:20:02]} (18... gxf4 $2 {is the wrong capture.} 19. Rxg8+ Nxg8 20. Qh5+ (20. Qxh8 Be6 $18) 20... Kf8 21. Qxh8 fxe3 22. Rg1 $18 (22. fxe3 Be6 $18)) (18... Bxd4 $16 19. exd4 (19. Qh5+ Kf8 $16) 19... Qxf4+ 20. Qxf4 gxf4 21. Rxg8+ Nxg8) 19. Qh5+ {[%emt 0:00:33]} (19. Qh7 $18 Kf8 20. Rhg1) 19... Kd8 $16 {[%emt 0:00:41][%cal Od8c7]} 20. Qh7 {[%emt 0:04:22] Rh6 is the strong threat.} Bd7 {[%emt 0:01:39]} 21. Nh5 {[%emt 0:02:10]} (21. Rhg1 $16) 21... Qg6 {[%emt 0:00:55]} (21... Qf8 $11) 22. Qxg6 $14 {[%emt 0:01:32]} Rxg6 {[%emt 0:00:14]} 23. Rhg1 {[%emt 0:00:40]} g4 {[%emt 0:00:47]} 24. Rh2 {[%emt 0:00:31]} Kc7 {[%emt 0:01:14]} 25. Nf4 {[%emt 0:00:12]} Rgg8 {[%emt 0:00:57]} 26. Rh7 {[%emt 0:00:23]} (26. Nce2 $14 {is superior.}) 26... Bf6 $1 $11 {[%emt 0:00:35]} 27. Nce2 {[%emt 0:00:40]} Rh8 {[%emt 0:00:32]} 28. Rgh1 {[%emt 0:00:31]} Raf8 {[%emt 0:00:32]} 29. Ng3 {[%emt 0:00:43] Excellent horsemanship.} Kd6 {[%emt 0:00:22]} 30. Kd2 {[%emt 0:00:22]} b6 {[%emt 0:00:24]} 31. c4 {[%emt 0:00:50] The board is on fire. White is much more active.} ({White should play} 31. R7h6 $16 {[%cal Oh6f6] Rxf6+! would now be deadly.} Rxh6 32. Rxh6) 31... c5 {[%emt 0:00:35]} (31... Rxh7 $11 32. Rxh7 dxc4 33. Bxc4 Rh8) 32. Rxh8 {[%emt 0:00:29]} (32. dxc5+ $1 $14 bxc5 33. cxd5) 32... Rxh8 {[%emt 0:00:19]} 33. Rxh8 {[%emt 0:00:19]} Bxh8 {[%emt 0:00:01]} 34. dxc5+ {[%emt 0:00:35]} Kxc5 {[%emt 0:01:06]} 35. Nxd5 {[%emt 0:00:31]} Nxd5 {[%emt 0:00:20]} 36. cxd5 {[%emt 0:00:03]} Kxd5 {[%emt 0:00:46]} ({Of course not} 36... Bxb2 37. Bxf5 Bxf5 38. Nxf5 $16) 37. Nxf5 {[%emt 0:01:09]} (37. Bxf5 $11 Bxf5 38. Nxf5) 37... Bxb2 $14 {[%emt 0:00:24][%mdl 4096] Endgame. KBB-KBN} 38. Nh6 {[%emt 0:00:30]} Bg7 {[%emt 0:00:40]} 39. Nf5 {[%emt 0:00:03]} ({Better is} 39. Bf5 $1 $11) 39... Bf6 {[%emt 0:00:27]} 40. Ke2 {[%emt 0:00:43]} ({White should try} 40. Bc2 $15) 40... b5 {[%emt 0:00:34]} 41. f3 {[%emt 0:05:58]} gxf3+ {[%emt 0:00:12]} 42. Kxf3 {[%emt 0:00:10]} b4 {[%emt 0:00:23]} (42... Kc5 $17 43. Ng3 Kb6) 43. Ng3 $1 $15 {[%emt 0:03:02]} a5 {[%emt 0:03:13]} 44. Ne4 {[%emt 0:01:12]} Bh4 {[%emt 0:03:15]} 45. Nd2 {[%emt 0:01:06]} a4 {[%emt 0:02:28]} 46. Bc4+ {[%emt 0:12:01]} Kc5 {[%emt 0:00:38]} 47. Bf7 {[%emt 0:00:46]} Bb5 {[%emt 0:06:24]} 48. Ne4+ {[%emt 0:04:43]} Kb6 {[%emt 0:00:29]} 49. Kf4 {[%emt 0:02:01]} Bd3 {[%emt 0:01:00] Strongly threatening ...Be1.} 50. Ke5 $1 {[%emt 0:01:23]} Be1 {[%emt 0:00:54][%cal Ob4b3] White must now prevent ...b3!} 51. Kd4 $1 {[%emt 0:01:59]} Bc2 {[%emt 0:03:55]} 52. Bc4 {[%emt 0:00:17] [#]} (52. Nc5 $11 {keeps the balance.}) 52... a3 {[%emt 0:01:51]} (52... Bh4 $1 $17) 53. Nd6 $2 {[%emt 0:02:02][%mdl 8192] [#]} (53. Nc5 $11) 53... b3 $1 {[%emt 0:06:28][%mdl 512]} 54. Bxb3 $19 {[%emt 0:00:29]} Bxb3 {[%emt 0:00:07]} 55. Nc4+ {[%emt 0:00:03]} Bxc4 {[%emt 0:01:25]} 56. Kxc4 {[%emt 0:00:04] KB-KPP} Bd2 {[%emt 0:00:10]} 57. e4 {[%emt 0:00:22]} Kc6 {[%emt 0:00:22]} 58. e5 {[%emt 0:00:08]} Kd7 {[%emt 0:00:31]} 59. Kd5 {[%emt 0:00:13]} Ke7 {[%emt 0:00:05]} 60. e6 {[%emt 0:00:37]} Bc3 {[%emt 0:00:31]} 61. Kc4 {[%emt 0:00:07]} Bb2 {[%emt 0:00:06]} 62. Kd5 {[%emt 0:00:13]} Ba1 {[%emt 0:00:04]} 63. Kc4 {[%emt 0:00:02]} Kxe6 {[%emt 0:00:07] KB-KP} 64. Kb3 {[%emt 0:00:01]} Bb2 {[%emt 0:00:11]} 65. Kc2 {[%emt 0:00:03]} Kd5 {[%emt 0:00:26]} 66. Kb1 {[%emt 0:00:03]} Kd4 {[%emt 0:01:05]} 67. Kc2 {[%emt 0:00:01]} Kc4 {[%emt 0:00:05]} 68. Kb1 {[%emt 0:00:03]} Bf6 {[%emt 0:00:31]} 69. Kc2 {[%emt 0:00:13]} Bc3 {[%emt 0:00:23]} 70. Kb1 {[%emt 0:00:15]} Kd3 {[%emt 0:00:08]} 71. Kc1 {[%emt 0:00:02]} Be5 {[%emt 0:00:56]} 72. Kb1 {[%emt 0:00:03]} Kc3 {[%emt 0:00:04]} 73. Kc1 {[%emt 0:00:08]} Kd3 {[%emt 0:05:24]} 74. Kb1 $1 {[%emt 0:00:15]} Bb2 {Never resign too early!   Weighted Error Value: White=0.32/Black=0.34.  Loses game:     	White=1     	---        Missed win:     	---       	Black=1      Mistake:       	White=10    	Black=7      Inaccurate:     	White=1     	Black=4      OK:         	White=16    	Black=22     Best:        	White=5     	Black=6      Strong:       	White=4     	Black=1} 1/2-1/2

[Event "Summer Prague Open-A 2024"]
[Site "Prague"]
[Date "2024.08.05"]
[Round "5.24"]
[White "Holub, Adam"]
[Black "Pujari, Rucha"]
[Result "0-1"]
[Annotator "TA"]
[ECO "C86"]
[WhiteElo "1980"]
[BlackElo "2175"]
[PlyCount "68"]
[EventDate "2024.08.02"]
[EventType "swiss"]
[EventCountry "CZE"]
[SourceTitle "playchess.com"]
[Source "ChessBase"]
[SourceQuality "1"]
[TimeControl "40/5400+30:1800+30"]

{[%evp 22,68,31,32,43,21,35,39,58,50,64,66,85,87,80,80,92,66,71,54,55,20,72,75,53,49,50,36,52,0,36,11,8,0,7,0,13,-19,-20,-89,-84,-86,-87,-819,-820,-820,-812,-741,-718]} 1. e4 {[%emt 0:01:58]} e5 {[%emt 0:00:26]} 2. Nf3 {[%emt 0:00:29]} Nc6 {[%emt 0:00:07]} 3. Bb5 {[%emt 0:00:23]} a6 {[%emt 0:00:10]} 4. Ba4 {[%emt 0:00:16]} Nf6 {[%emt 0:00:03]} 5. O-O {[%emt 0:00:15]} Be7 {[%emt 0:00:06]} 6. Qe2 {[%emt 0:00:13]} b5 {[%emt 0:03:46]} 7. Bb3 {[%emt 0:00:10]} O-O {[%emt 0:01:52]} 8. c3 {[%emt 0:00:15]} d6 {[%emt 0:03:51]} 9. Rd1 {[%emt 0:01:21]} Na5 {[%emt 0:00:52]} 10. Bc2 {[%emt 0:00:11]} c5 {[%emt 0:00:15]} 11. d4 {[%emt 0:01:25]} Qc7 {[%emt 0:00:32]} 12. d5 {[%emt 0:00:16]} Re8 {[%emt 0:08:36]} 13. h3 {[%emt 0:00:59]} Rb8 {[%emt 0:02:08]} 14. Nbd2 {[%emt 0:03:38]} Bf8 {[%emt 0:04:10] White is slightly better.} 15. Nf1 {[%emt 0:02:00]} g6 {[%emt 0:02:10]} 16. Ng3 {[%emt 0:03:35]} b4 {[%emt 0:05:10]} 17. Bd2 {[%emt 0:18:57]} b3 {[%emt 0:03:06]} 18. axb3 {[%emt 0:11:06]} Nxb3 {[%emt 0:00:29]} 19. Bxb3 {[%emt 0:00:24]} Rxb3 {[%emt 0:00:04]} 20. Bc1 {[%emt 0:01:19]} Rb8 {[%emt 0:07:39]} 21. Nd2 {[%emt 0:07:31]} h5 {[%emt 0:13:29]} (21... a5 $11) 22. Nc4 {[%emt 0:10:43]} Bd7 {[%emt 0:10:58]} 23. Rxa6 {[%emt 0:17:03]} Bb5 {[%emt 0:03:55]} 24. Ra3 {[%emt 0:02:00]} Nd7 {[%emt 0:05:18]} 25. Nf1 {[%emt 0:02:46]} ({White should play} 25. b3 $14) 25... Nb6 {[%emt 0:00:55]} 26. Nfe3 {[%emt 0:01:56]} Ra8 {[%emt 0:04:55]} 27. Rxa8 {[%emt 0:05:54]} Rxa8 {[%emt 0:00:09]} 28. b3 {[%emt 0:00:06]} Qa7 {[%emt 0:02:48]} 29. Bb2 {[%emt 0:02:07]} Qa2 {[%emt 0:05:21]} 30. Qc2 {[%emt 0:02:32]} (30. Qe1 $11 Bxc4 31. bxc4) 30... Nxc4 $17 {[%emt 0:01:34]} (30... Bxc4 31. bxc4 Qa4 32. Qxa4 Rxa4 33. Rb1 $17) 31. Nxc4 {[%emt 0:02:03]} Bxc4 {[%emt 0:00:34]} 32. Ra1 $2 {[%emt 0:01:06][%mdl 8192] [#]} (32. bxc4 $17 Rb8 (32... Qxc4 33. h4 $15) 33. Rd2) 32... Qxb3 $19 {[%emt 0:01:07] Black is clearly winning.} 33. Qxb3 {[%emt 0:01:06]} Rxa1+ {[%emt 0:00:08]} 34. Bxa1 {[%emt 0:00:08]} Bxb3 {[%emt 0:00:02] Weighted Error Value: White=0.38/Black=0.12 (very precise) .  Loses game:     	White=1     	---        Mistake:       	White=2     	Black=1      Inaccurate:     	White=2     	Black=1      OK:         	White=7     	Black=6      Best:        	---       	Black=2} 0-1

[Event "Summer Prague Open-A 2024"]
[Site "Prague"]
[Date "2024.08.05"]
[Round "5.25"]
[White "Cichon, Jakub"]
[Black "Zvolensky, David"]
[Result "0-1"]
[Annotator "NA RC"]
[ECO "C50"]
[WhiteElo "1979"]
[BlackElo "2167"]
[PlyCount "128"]
[EventDate "2024.08.02"]
[EventType "swiss"]
[EventCountry "CZE"]
[SourceTitle "playchess.com"]
[Source "ChessBase"]
[SourceQuality "1"]
[TimeControl "40/5400+30:1800+30"]

1. e4 {[%emt 0:03:22]} e5 {[%emt 0:00:02]} 2. Nf3 {[%emt 0:00:08]} Nc6 {[%emt 0:00:05]} 3. Bc4 {[%emt 0:00:06]} Nf6 {[%emt 0:00:05]} 4. d3 {[%emt 0:00:11]} Bc5 {[%emt 0:00:07]} 5. O-O {[%emt 0:00:47]} a6 {[%emt 0:00:48]} 6. Bb3 {[%emt 0:01:06]} d6 {[%emt 0:00:30]} 7. c3 {[%emt 0:00:05]} Ba7 {[%emt 0:00:03]} 8. Nbd2 {[%emt 0:00:27]} O-O {[%emt 0:00:15]} 9. h3 {[%emt 0:00:20]} Be6 {[%emt 0:01:44]} 10. Re1 {[%emt 0:01:50]} h6 {[%emt 0:08:29]} 11. Nf1 {[%emt 0:02:33]} Re8 {[%emt 0:00:10]} 12. Ng3 {[%emt 0:02:23]} d5 {[%emt 0:03:20]} 13. Qe2 {[%emt 0:03:06]} Qd7 {[%emt 0:05:40]} 14. Be3 {[%emt 0:14:26]} Bxe3 {[%emt 0:04:28]} 15. Qxe3 {[%emt 0:00:55]} Rad8 {[%emt 0:01:34]} 16. Rad1 {[%emt 0:05:42]} d4 {[%emt 0:07:23]} 17. Qe2 {[%emt 0:02:58]} Bxb3 {[%emt 0:04:32]} 18. axb3 {[%emt 0:00:11]} g6 {[%emt 0:04:37]} 19. Rf1 {[%emt 0:06:57]} a5 {[%emt 0:04:29]} 20. Nh2 {[%emt 0:06:01]} h5 {[%emt 0:05:30]} 21. f4 {[%emt 0:10:40]} exf4 {[%emt 0:04:24]} 22. Rxf4 {[%emt 0:02:01]} Nd5 {[%emt 0:01:53]} 23. Rh4 {[%emt 0:12:16]} Qe7 {[%emt 0:03:45]} 24. Nf5 {[%emt 0:01:32]} Qg5 {[%emt 0:02:33]} 25. Rf1 {[%emt 0:09:27]} gxf5 {[%emt 0:02:28]} 26. Qf2 {[%emt 0:07:37]} Nf6 {[%emt 0:02:37]} 27. Rf4 {[%emt 0:00:55]} Nh7 {[%emt 0:12:39]} 28. Kh1 {[%emt 0:01:53]} fxe4 {[%emt 0:02:04]} 29. dxe4 {[%emt 0:01:26]} dxc3 {[%emt 0:02:19]} 30. bxc3 {[%emt 0:01:13]} Ne5 {[%emt 0:02:14]} 31. Rf5 {[%emt 0:00:27]} Qg6 {[%emt 0:01:00]} 32. Qf4 {[%emt 0:02:02]} f6 {[%emt 0:02:47]} 33. Nf3 {[%emt 0:00:18]} Rd3 {[%emt 0:07:16]} 34. Nxe5 {[%emt 0:01:32]} fxe5 {[%emt 0:00:01]} 35. Rxe5 {[%emt 0:00:13]} Rf8 {[%emt 0:00:05]} 36. Rf5 {[%emt 0:00:47]} Rxf5 {[%emt 0:00:02]} 37. exf5 {[%emt 0:00:02]} Qg3 {[%emt 0:02:05]} 38. Qc4+ {[%emt 0:00:59]} Kg7 {[%emt 0:00:10]} 39. Qe6 {[%emt 0:00:33]} Qd6 {[%emt 0:03:10]} 40. Qc4 {[%emt 0:00:32]} Rd1 {[%emt 0:01:39]} 41. Rxd1 {[%emt 0:02:17]} Qxd1+ {[%emt 0:00:05]} 42. Kh2 {[%emt 0:00:05]} Qd6+ {[%emt 0:00:31]} 43. Kh1 {[%emt 0:00:30]} Qe5 {[%emt 0:00:36]} 44. b4 {[%emt 0:05:57]} axb4 {[%emt 0:01:44]} 45. cxb4 {[%emt 0:00:56]} Nf6 {[%emt 0:01:30]} 46. Kg1 {[%emt 0:03:01]} Nd5 {[%emt 0:02:21]} 47. Qb5 {[%emt 0:04:56]} b6 {[%emt 0:02:25]} 48. Qd7+ {[%emt 0:00:31]} Kf6 {[%emt 0:00:28]} 49. b5 {[%emt 0:02:55]} Qxf5 {[%emt 0:00:44]} 50. Qe8 {[%emt 0:00:59]} Qe5 {[%emt 0:01:41]} 51. Qh8+ {[%emt 0:01:01]} Ke6 {[%emt 0:00:09]} 52. Qe8+ {[%emt 0:00:07]} Ne7 {[%emt 0:00:34]} 53. Kh1 {[%emt 0:00:14]} Kd5 {[%emt 0:00:36]} 54. Kg1 {[%emt 0:01:53]} Kc4 {[%emt 0:01:36]} 55. Kh1 {[%emt 0:00:04]} Kb4 {[%emt 0:01:07]} 56. Kg1 {[%emt 0:04:14]} Qc5+ {[%emt 0:00:01]} 57. Kh2 {[%emt 0:00:19]} h4 {[%emt 0:00:55]} 58. Kh1 {[%emt 0:00:40]} Nf5 {[%emt 0:00:14]} 59. Qd7 {[%emt 0:01:46]} Qc1+ {[%emt 0:01:09]} 60. Kh2 {[%emt 0:00:06]} Qf4+ {[%emt 0:00:04]} 61. Kg1 {[%emt 0:02:10]} Qd4+ {[%emt 0:00:54]} 62. Qxd4+ {[%emt 0:00:17]} Nxd4 {[%emt 0:00:01]} 63. Kf2 {[%emt 0:00:15]} Kxb5 {[%emt 0:00:07]} 64. Ke3 {[%emt 0:00:03]} c5 {[%emt 0:00:15]} 0-1

[Event "Summer Prague Open-A 2024"]
[Site "Prague"]
[Date "2024.08.05"]
[Round "5.26"]
[White "Maj, Pawel"]
[Black "Green, Michael L"]
[Result "1-0"]
[Annotator "NA RC"]
[ECO "A11"]
[WhiteElo "2158"]
[BlackElo "1997"]
[PlyCount "47"]
[EventDate "2024.08.02"]
[EventType "swiss"]
[EventCountry "CZE"]
[SourceTitle "playchess.com"]
[Source "ChessBase"]
[SourceQuality "1"]
[TimeControl "40/5400+30:1800+30"]

1. c4 {[%emt 0:00:03]} c6 {[%emt 0:01:19]} 2. Nf3 {[%emt 0:00:10]} Nf6 {[%emt 0:00:33]} 3. g3 {[%emt 0:01:58]} d5 {[%emt 0:00:27]} 4. Bg2 {[%emt 0:03:02]} Bf5 {[%emt 0:02:53]} 5. Qb3 {[%emt 0:02:32]} Qb6 {[%emt 0:10:57]} 6. Nc3 {[%emt 0:04:55]} e6 {[%emt 0:02:06]} 7. d4 {[%emt 0:07:49]} h6 {[%emt 0:05:00]} 8. c5 {[%emt 0:03:38]} Qa6 {[%emt 0:04:34]} 9. Bf1 {[%emt 0:08:09]} b5 {[%emt 0:03:19]} 10. a4 {[%emt 0:02:46]} Nbd7 {[%emt 0:02:39]} 11. Ra2 {[%emt 0:08:10]} b4 {[%emt 0:05:44]} 12. e4 {[%emt 0:14:31]} Qa5 {[%emt 0:00:54]} 13. exf5 {[%emt 0:01:21]} bxc3 {[%emt 0:00:47]} 14. fxe6 {[%emt 0:02:46]} cxb2+ {[%emt 0:07:34]} 15. Bd2 {[%emt 0:00:10]} Rb8 {[%emt 0:01:21]} 16. exd7+ {[%emt 0:00:06]} Nxd7 {[%emt 0:00:15]} 17. Qe3+ {[%emt 0:00:37]} Be7 {[%emt 0:02:00]} 18. Rxb2 {[%emt 0:00:32]} Qxa4 {[%emt 0:05:17]} 19. Rxb8+ {[%emt 0:00:05]} Nxb8 {[%emt 0:00:06]} 20. Be2 {[%emt 0:01:22]} Nd7 {[%emt 0:03:46]} 21. O-O {[%emt 0:00:12]} Nf8 {[%emt 0:00:09]} 22. Qc3 {[%emt 0:02:35]} Bg5 {[%emt 0:03:27]} 23. Nxg5 {[%emt 0:00:46]} hxg5 {[%emt 0:00:18]} 24. Ra1 {[%emt 0:00:05]} 1-0

[Event "Summer Prague Open-A 2024"]
[Site "Prague"]
[Date "2024.08.05"]
[Round "5.27"]
[White "Omarsson, Adam"]
[Black "Pahud, Cedric"]
[Result "0-1"]
[Annotator "RC"]
[ECO "E50"]
[WhiteElo "1970"]
[BlackElo "2152"]
[PlyCount "98"]
[EventDate "2024.08.02"]
[EventType "swiss"]
[EventCountry "CZE"]
[SourceTitle "playchess.com"]
[Source "ChessBase"]
[SourceQuality "1"]
[TimeControl "40/5400+30:1800+30"]

1. d4 Nf6 {[%emt 0:01:01]} 2. c4 {[%emt 0:00:09]} e6 {[%emt 0:00:02]} 3. Nc3 {[%emt 0:00:09]} Bb4 {[%emt 0:00:27]} 4. e3 {[%emt 0:00:08]} O-O {[%emt 0:00:18]} 5. Nf3 {[%emt 0:00:07]} Bxc3+ {[%emt 0:00:22]} 6. bxc3 {[%emt 0:00:06]} d6 {[%emt 0:00:07]} 7. Bd3 {[%emt 0:05:58]} Re8 {[%emt 0:00:38]} 8. e4 {[%emt 0:01:59]} e5 {[%emt 0:01:12]} 9. d5 {[%emt 0:00:37]} Bg4 {[%emt 0:08:07]} 10. h3 {[%emt 0:00:43]} Bxf3 {[%emt 0:01:15]} 11. Qxf3 {[%emt 0:02:16]} Nfd7 {[%emt 0:01:10]} 12. h4 {[%emt 0:05:46]} Qf6 {[%emt 0:00:50]} 13. Qh3 {[%emt 0:03:39]} Nc5 {[%emt 0:03:20]} 14. Bc2 {[%emt 0:00:42]} Nbd7 {[%emt 0:01:17]} 15. h5 {[%emt 0:00:56]} Nb6 {[%emt 0:02:33]} 16. Qg4 {[%emt 0:00:42]} h6 {[%emt 0:10:00]} 17. Rh3 {[%emt 0:00:10]} Kh8 {[%emt 0:00:10]} 18. Qe2 {[%emt 0:00:58]} Qe7 {[%emt 0:02:44]} 19. Be3 {[%emt 0:03:26]} Nbd7 {[%emt 0:07:58]} 20. Qd2 {[%emt 0:05:54]} Nf6 {[%emt 0:03:31]} 21. f3 {[%emt 0:07:43]} Nh7 {[%emt 0:02:52]} 22. Ke2 {[%emt 0:02:36]} Rf8 {[%emt 0:06:09]} 23. Rb1 {[%emt 0:12:28]} b6 {[%emt 0:03:03]} 24. Rhh1 {[%emt 0:02:08]} f5 {[%emt 0:11:01]} 25. Bxc5 {[%emt 0:01:11]} dxc5 {[%emt 0:00:27]} 26. exf5 {[%emt 0:00:23]} e4 {[%emt 0:00:29]} 27. Bxe4 {[%emt 0:00:29]} Ng5 {[%emt 0:00:27]} 28. Kd3 {[%emt 0:01:24]} c6 {[%emt 0:06:52]} 29. Rbe1 {[%emt 0:02:23]} b5 {[%emt 0:05:56]} 30. Kc2 {[%emt 0:08:35]} Rad8 {[%emt 0:01:30]} 31. Bd3 {[%emt 0:02:03]} Qc7 {[%emt 0:02:35]} 32. cxb5 cxd5 {[%emt 0:02:23]} 33. Kc1 {[%emt 0:08:40]} Qa5 {[%emt 0:02:55]} 34. Rh4 {[%emt 0:06:23]} c4 {[%emt 0:01:12]} 35. Bb1 {[%emt 0:01:54]} Qxb5 {[%emt 0:02:35]} 36. f4 {[%emt 0:01:33]} Rb8 {[%emt 0:02:55]} 37. Bc2 {[%emt 0:00:43]} Ne4 {[%emt 0:02:50]} 38. Bxe4 {[%emt 0:00:51]} dxe4 {[%emt 0:00:03]} 39. Qc2 {[%emt 0:00:57]} Qc5 {[%emt 0:04:26]} 40. Kd1 {[%emt 0:01:15]} Qa3 {[%emt 0:01:29]} 41. Re2 {[%emt 0:30:15]} Rbd8+ {[%emt 0:06:10]} 42. Ke1 {[%emt 0:00:00]} Rd3 {[%emt 0:00:42]} 43. Rh3 {[%emt 0:00:00]} Qc5 {[%emt 0:03:27]} 44. Rh1 {[%emt 0:00:00]} Qxf5 {[%emt 0:01:31]} 45. Rf1 {[%emt 0:00:00]} Rfd8 {[%emt 0:01:56]} 46. Qc1 {[%emt 0:00:00]} Qd5 {[%emt 0:03:16]} 47. Kf2 {[%emt 0:00:00]} Qc5+ {[%emt 0:00:11]} 48. Ke1 {[%emt 0:00:00]} e3 {[%emt 0:00:31]} 49. Rf3 {[%emt 0:00:00]} Qd5 {[%emt 0:00:40]} 0-1